{"text_format":"1","workbook":"xlsx","n_sheets":2,"sheets":["Sheet1","Sheet2"],"not_rendered":{"charts":0,"images":11,"macros":1,"external_links":0,"defined_names":1,"comments":0,"pivot_tables":0},"unopened":[],"bounds":{"document_bytes":16777216,"sheet_cells":100000,"rows_first":2000,"rows_last":500,"rows_between":2000,"halvings":0,"cell_chars":16384,"cell_head_chars":4096},"cells_cut":0,"cells_raw":0,"read":"whole","date_system":"1900"}

{"sheet":"Sheet1","index":0,"n_rows":55,"n_cols":10,"rows_kept":55,"cut":false,"hidden":false,"merged":[[65,0,65,2],[95,0,95,1],[96,0,96,1],[58,3,59,5],[0,0,0,9],[1,0,1,9],[16,6,16,9],[49,0,49,1],[50,0,50,1],[68,0,68,2],[69,0,69,2],[70,0,70,2],[82,1,82,6],[60,2,60,6],[61,1,61,7],[65,4,65,6],[71,0,71,2],[72,0,72,2],[73,0,73,2],[74,0,74,2],[66,4,66,6],[67,4,67,6],[68,4,68,6],[69,4,69,6],[70,4,70,6],[65,8,65,9],[66,8,66,9],[67,8,67,9],[68,8,68,9],[69,8,69,9],[88,0,88,9],[89,0,89,9],[66,0,66,2],[67,0,67,2],[79,0,79,9],[80,0,80,9],[85,0,85,9],[70,8,70,9],[71,8,71,9],[72,8,72,9],[73,8,73,9],[74,8,74,9],[71,4,71,6],[72,4,72,6],[73,4,73,6],[74,4,74,6]]}
["ATENCIÓN: Esta forma debe ser llenada completamente y reenviada en formato Excel via e-mail, y una copia dura de"]
["la Ordén de Compra (Si aplica) deberá  acompañar esta forma. NO ENVIAR COPIA O PDF DE ESTE ARCHIVO"]
[]
["Company"]
["Contact",null,null,null,null,"email"]
[null,null,null,"The confirmation letter will be sent to this person"]
["Student Name"]
[1,null,null,null,null,6]
[2,null,null,null,null,7]
[3,null,null,null,null,8]
[4,null,null,null,null,9]
[5,null,null,null,null,10]
[]
["If you wish Competence Certificate DC3 Format",null,null,null,null,false]
[]
["Phone:",null,null,null,"Ext",null,"Fax:"]
[]
["Controller","",null,null,"Curse",""]
[]
["Facilities",null,null,null,null,null,"Start Date","2014-06-02","End Date","2014-06-06"]
[null,null,null,null,null,null,"You will be contacted if the date is full"]
[]
["If training is on site. Select the amount of available robots",null,null,null,null,null,null,""]
["This is the maximum of students in training",null,null,{"$f":"H23*2","v":{"$error":"#VALUE!"}}]
[null,"Orden de Compra",1,"Yaskawa Mexico - Aguascalientes, Ags.","XRC","Básico para Operadores"]
[null,"Creditos de Capacitación",2,"Yaskawa Mexico - Apodaca, N.L.","NX100","Programación Básica"]
[null,null,3,"En Planta","NXC100","Programación Basica con Rev. de Soldadura"]
[null,null,4,null,"DX100","Programación Básica con Mov. Coordinado"]
[null,null,null,null,"FS100","Programación Avanzada"]
[null,null,null,null,null,"Mantenimiento sin rev. De Prog. Básica"]
[null,null,null,null,null,"Mantenimiento con Rev. de Prog. Básica"]
[null,null,null,null,null,"Programación Ladder Editor"]
[null,null,null,null,null,"Programación Acelerada"]
[null,null,null,null,null,"Programación Acelerada con Soldadura"]
[]
[]
["Address for"]
["Invoice"]
[]
[]
[]
["Choose kind"]
["of payment",null,null,null,null,"Payment Ref."]
[null,null,"You should attach a copy of that document"]
[]
["If you choose Training Credit, write the warranty I.D. of the robot"]
[]
[]
["Conntact Information"]
["Senior Robotics Instructor",null,"Ing. Oscar Guirao",null,"oscar.guirao@motoman.com",null,null,null,"Tel. 449-973-1170 x 104"]
[]
[]
["CC"]
["roberto.barcena@motoman.com"]
["alejandra.ortiz@motoman.com"]

{"sheet":"Sheet2","index":1,"n_rows":40,"n_cols":15,"rows_kept":40,"cut":false,"hidden":true,"merged":[[3,0,3,2],[8,7,8,8],[39,0,39,3],[39,6,39,9],[39,12,39,15],[5,0,5,6],[6,2,6,8],[8,0,8,6],[17,13,17,15]]}
[]
[]
[]
[{"$f":"TODAY()","v":"2014-06-13"}]
[]
[{"$f":"Sheet1!B4","v":0}]
["Estimado(a)",null,{"$f":"Sheet1!B5","v":0}]
["Antés que nada reciba nuestro agradecimiento por enlistar a su equipo de trabajo al curso de"]
[{"$f":"Sheet1!F18","v":""},null,null,null,null,null,null,{"$f":"Sheet1!B18","v":""},null,", el cual tiene una duración de",null,null,null,null,{"$f":"IF(Sheet1!F18=Sheet1!F25,2,IF(Sheet1!F18=Sheet1!F26,4,IF(Sheet1!F18=Sheet1!F27,4.5,IF(Sheet1!F18=Sheet1!F28,4.5,IF(Sheet1!F18=Sheet1!F29,4.5,IF(Sheet1!F18=Sheet1!F30,3.5,IF(Sheet1!F18=Sheet1!F31,4.5,IF(Sheet1!F18=Sheet1!F32,3,IF(Sheet1!F18=Sheet1!F33,4.5,IF(Sheet1!F18=Sheet1!F34,5,0))))))))))&\"  días\"","v":"0  días"}]
[]
["Nombre de los asistentes:"]
[null,{"$f":"IF(Sheet1!B8=0,\"1.-\",\"1.- \"&Sheet1!B8)","v":"1.-"},null,null,null,null,null,null,null,{"$f":"IF(Sheet1!G8=0,\"6.-\",\"6.- \"&Sheet1!G8)","v":"6.-"}]
[null,{"$f":"IF(Sheet1!B9=0,\"2.-\",\"2.- \"&Sheet1!B9)","v":"2.-"},null,null,null,null,null,null,null,{"$f":"IF(Sheet1!G9=0,\"7.-\",\"7.- \"&Sheet1!G9)","v":"7.-"}]
[null,{"$f":"IF(Sheet1!B10=0,\"3.-\",\"3.- \"&Sheet1!B10)","v":"3.-"},null,null,null,null,null,null,null,{"$f":"IF(Sheet1!G10=0,\"8.-\",\"8.- \"&Sheet1!G10)","v":"8.-"}]
[null,{"$f":"IF(Sheet1!B11=0,\"4.-\",\"4.- \"&Sheet1!B11)","v":"4.-"},null,null,null,null,null,null,null,{"$f":"IF(Sheet1!G11=0,\"9.-\",\"9.- \"&Sheet1!G11)","v":"9.-"}]
[null,{"$f":"IF(Sheet1!B12=0,\"5.-\",\"5.- \"&Sheet1!B12)","v":"5.-"},null,null,null,null,null,null,null,{"$f":"IF(Sheet1!G12=0,\"10.-\",\"10.- \"&Sheet1!G12)","v":"10.-"}]
[]
["El Curso dará inicio diariamente a las 8:30 am y comenzará partir de la fecha",null,null,null,null,null,null,null,null,null,null,null,null,{"$f":"Sheet1!H20","v":"2014-06-02"}]
["en las instalaciones de",null,null,null,{"$f":"Sheet1!B20","v":0},null,null,null,null,null,null,"Las clases finalizarán "]
["diariamente a las 5:30 p.m. A excepción de los cursos que cuentan con medio día de curso."]
[]
["Porfavor tomar en cuenta las siguientes consideraciones:"]
[null,null,"Las instalaciones de Yaskawa Motoman Robotics son libres de humo."]
[null,null,"Estacionarse en los cajones exclusivos de Yaskawa Motoman Robotics"]
[null,null,"No se permite el uso de Camaras, Video Camaras o Equipos Mobiles dentro del "]
[null,null,"horario de curso."]
[]
["Deseamos que su personal encuentre este curso fructifero y disfruten su estancia en nuestras "]
["instalaciones"]
[]
["Saludos Cordiales"]
[]
[]
[]
[{"$f":"IF(Sheet1!B20=Sheet1!D25,\"Ing. Oscar Guirao\",IF(Sheet1!B20=Sheet1!D26,\"Ing. Feliciano Vazquez\",0))","v":0}]
["Instructor de Robótica"]
[]
["Para reagendar o cancelar la asistencia de un estudiante, porfavor "]
["emita su requisicion escribiendo a los corres siguientes"]
["oscar.guirao@motoman.com",null,null,null,null,null,null,null,null,null,null,null,"alejandra.ortiz@motoman.com"]